bitfinex/quotes_ETHUSD_20241203
["timestamp","ask_amount","ask_price","bid_price","bid_amount"]
[1733192753983,0.3,3634.1,3632.7,0.2747]
[1733192754178,0.3,3634.1,3633.2,0.03976906]
[1733192754451,0.3,3634.1,3633.3,0.0397541]
[1733192754813,0.3,3634.1,3632.9,0.2747]
[1733192754951,0.3,3634.1,3633.4,0.03973914]
[1733192755152,0.3,3634.1,3632.7,0.2747]
[1733192755380,0.3,3634.1,3633.5,0.03972418]
[1733192755580,0.1,3634.0,3632.9,0.2747]
[1733192756086,0.1,3634.0,3633.0,0.03979897]
[1733192756599,0.1,3634.0,3632.7,0.2747]
[1733192757097,0.1,3634.0,3632.8,0.0398289]
[1733192757397,0.1,3634.0,3633.0,0.2747]
[1733192757699,0.1,3634.0,3633.1,0.03978401]
[1733192758500,0.1,3634.0,3632.7,0.2747]
[1733192758653,0.1,3634.0,3632.8,0.0398238]
[1733192760568,0.2,3633.7,3632.8,0.0398238]
[1733192761577,0.2,3633.3,3632.8,0.0398238]
[1733192762116,0.2,3633.3,3632.9,0.03980883]
[1733192762471,0.2,3633.3,3632.7,0.2747]
[1733192762856,0.2,3633.3,3632.8,0.0398238]
[1733192763312,0.2,3633.3,3632.7,0.2747]
[1733192763313,0.2,3633.3,3632.9,0.03980883]
[1733192763679,0.2,3633.3,3632.7,0.2747]
[1733192763884,0.2,3633.3,3632.8,0.0398238]
[1733192764096,0.7819,3633.7,3632.7,0.2747]
[1733192764297,0.1,3633.9,3632.8,0.0398238]
[1733192766821,1.105,3634.1,3632.8,0.0398238]
[1733192767603,0.03440183,3634.0,3632.8,0.0398238]
[1733192767803,0.8345,3633.6,3632.8,0.0398238]
[1733192769122,0.2,3633.7,3632.8,0.0398238]
[1733192770700,0.7985,3634.2,3632.9,0.2747]
[1733192770986,0.9985,3634.8,3633.8,0.2747]
[1733192771282,0.2,3634.8,3633.9,0.03980192]
[1733192772459,0.2,3634.8,3633.4,0.2747]
[1733192772660,0.2,3634.8,3633.5,0.03717306]
[1733192772979,0.2,3634.8,3634.2,0.2747]
[1733192773483,0.7985,3635.1,3634.3,0.03705344]
[1733192773969,0.8265,3635.1,3634.3,0.03705344]
[1733192774494,0.8265,3635.1,3634.2,0.2747]
[1733192774689,0.028,3635.1,3634.2,0.2747]
[1733192774915,0.028,3635.1,3634.3,0.0364473]
[1733192778889,0.028,3635.1,3634.8,0.81730599]
[1733192779062,0.028,3635.1,3634.9,0.03488023]
[1733192780291,0.028,3635.1,3634.3,0.2747]
[1733192780491,0.028,3635.1,3634.6,0.2747]
[1733192780695,0.028,3635.1,3634.7,0.03254516]
[1733192781803,0.2,3635.0,3634.3,0.2747]
[1733192781957,0.2,3635.0,3634.8,0.03253021]
[1733192782153,0.36383,3635.0,3634.3,0.2747]
[1733192783072,0.2,3635.0,3634.4,0.03259]
[1733192784002,0.55,3634.7,3634.3,0.2747]
[1733192784199,0.2,3634.3,3633.1,0.2751]
[1733192784360,0.228,3634.3,3633.1,0.2751]
[1733192784555,0.228,3634.3,3633.3,0.2751]
[1733192784979,0.228,3634.3,3633.2,0.31143998]
[1733192784980,0.2,3634.1,3633.5,0.2751]
[1733192785174,0.228,3634.1,3633.5,0.2751]
[1733192785446,0.228,3634.1,3633.6,0.03086384]
[1733192785703,0.228,3634.1,3633.5,0.2751]
[1733192786204,0.228,3634.1,3633.0,0.2751]
[1733192786501,0.228,3634.1,3633.2,0.2751]
[1733192786705,0.228,3634.1,3633.3,0.03090871]
[1733192788802,0.03440064,3634.0,3633.3,0.30600871]
[1733192789009,0.7875,3633.6,3633.3,0.30600871]
[1733192789234,0.65,3633.4,3633.3,0.2751]
[1733192789402,0.81375,3633.4,3633.3,0.2751]
[1733192789606,0.84175,3633.4,3633.3,0.2751]
[1733192789934,0.84175,3633.4,3632.8,0.2751]
[1733192790937,0.84175,3633.4,3632.4,0.2751]
[1733192791404,0.84175,3633.4,3632.5,0.0310284]
[1733192792115,0.2,3633.3,3632.5,0.0310284]
[1733192793713,0.8174,3633.2,3632.5,0.0310284]
[1733192793911,1.003315,3633.2,3631.9,0.2751]
[1733192794133,0.8454,3633.2,3632.0,0.02902072]
[1733192795211,0.8454,3633.2,3632.3,0.2751]
[1733192795530,0.8454,3633.2,3632.4,0.02896085]
[1733192796499,0.8454,3633.2,3632.2,0.2751]
[1733192796743,0.8454,3633.2,3632.3,0.02798535]
[1733192813140,0.028,3633.2,3632.9,0.2751]
[1733192813345,0.028,3633.2,3633.0,0.02792566]
[1733192814176,0.028,3633.2,3632.5,0.2751]
[1733192814555,0.028,3633.2,3632.6,0.02699461]
[1733192818556,0.028,3633.2,3632.8,0.2751]
[1733192818756,0.028,3633.2,3633.0,0.2751]
[1733192819177,0.028,3633.2,3633.1,0.02680261]
[1733192820002,0.8247,3633.2,3633.1,0.02680261]
[1733192820376,0.8247,3633.2,3632.8,0.2751]
[1733192820559,0.8247,3633.2,3633.1,0.02678732]
[1733192820765,0.8247,3633.2,3632.8,0.2751]
[1733192821063,0.8247,3633.2,3632.6,0.2751]
[1733192821370,1.20094243,3633.1,3632.6,0.2751]
[1733192821574,1.20094243,3633.1,3632.7,0.02684717]
[1733192821983,0.7504,3633.0,3632.7,0.02684717]
[1733192822161,0.028,3633.2,3632.7,0.02684717]
[1733192822359,0.7504,3633.5,3632.7,0.2751]
[1733192822562,0.7504,3633.5,3632.9,0.2751]
[1733192823030,0.7504,3633.5,3633.0,0.02686852]
[1733192823676,0.7504,3633.5,3632.4,0.2751]
[1733192823880,0.7504,3633.5,3632.5,0.02658667]
[1733192824276,0.03440293,3633.4,3632.5,0.02658667]
[1733192824463,0.03440293,3633.4,3633.0,0.2751]
[1733192824801,0.03440293,3633.4,3633.1,0.0264969]
[1733192825163,0.03440293,3633.4,3633.0,0.2751]
[1733192825360,0.03440293,3633.4,3632.1,0.2751]
[1733192825606,0.03440293,3633.4,3632.7,0.2751]
[1733192825792,0.03440505,3633.4,3632.7,0.2751]
[1733192825995,0.7784,3633.5,3632.8,0.02654178]
[1733192828134,0.2,3633.2,3632.8,0.02654178]
[1733192828291,0.8223,3633.1,3632.2,0.2751]
[1733192828499,0.8223,3633.1,3632.3,0.02668793]
[1733192829227,0.8223,3633.1,3632.4,0.2751]
[1733192829602,0.8223,3633.1,3632.5,0.026658]
[1733192832028,0.9223,3633.1,3632.5,0.026658]
[1733192832327,0.2,3633.0,3632.6,0.02664303]
[1733192832540,0.2,3633.0,3632.3,0.2751]
[1733192832828,0.2,3632.8,3632.4,0.02667296]
[1733192833054,0.2,3632.8,3632.4,0.30177296]
[1733192833055,0.2,3632.6,3632.4,0.30177296]
[1733192833333,0.8211,3632.5,3632.4,0.2751]
[1733192833690,1.3711,3632.5,3632.4,0.2751]
[1733192833892,1.80700979,3632.5,3632.4,0.2751]
[1733192835096,0.7746,3632.3,3631.7,0.2751]
[1733192835298,0.8026,3632.3,3631.8,0.02754247]
[1733192835492,0.8026,3632.3,3631.7,0.2751]
[1733192835699,0.8026,3632.3,3631.8,0.02754247]
[1733192835909,0.8026,3632.3,3631.7,0.2751]
[1733192836105,0.8026,3632.3,3631.8,0.02661488]
[1733192836311,0.8026,3632.3,3631.7,0.2751]
[1733192836540,0.8026,3632.3,3631.8,0.02661488]
[1733192836740,0.8026,3632.3,3631.7,0.2751]
[1733192837034,0.8026,3632.3,3631.8,0.02661488]
[1733192837210,0.7766,3632.1,3631.8,0.02661488]
[1733192837531,0.7766,3632.1,3631.7,0.2751]
[1733192837532,0.03441939,3632.0,3631.9,0.02659991]
[1733192837731,0.8046,3632.1,3631.7,0.2751]
[1733192838552,0.8046,3632.1,3631.8,0.02677291]
[1733192838729,0.8046,3632.1,3631.7,0.2751]
[1733192838927,0.8046,3632.1,3631.8,0.02683409]
[1733192839131,0.8046,3632.1,3631.7,0.2751]
[1733192839374,0.8046,3632.1,3631.8,0.02683919]
[1733192839718,0.8046,3632.1,3631.7,0.2751]
[1733192840054,0.8046,3632.1,3631.8,0.02683919]
[1733192840418,0.8046,3632.1,3631.7,0.2751]
[1733192840632,0.8046,3632.1,3631.9,0.02682422]
[1733192840827,0.8046,3632.1,3631.8,0.02683919]
[1733192841026,0.8046,3632.1,3631.7,0.2751]
[1733192841027,0.8046,3632.1,3632.0,0.02680925]
[1733192841232,0.8046,3632.1,3631.9,0.02672735]
[1733192841531,0.8046,3632.1,3632.0,0.02671238]
[1733192841731,0.8046,3632.1,3631.7,0.2751]
[1733192841963,0.8046,3632.1,3631.8,0.02674742]
[1733192842166,0.8046,3632.1,3631.7,0.2751]
[1733192842372,0.8046,3632.1,3631.8,0.0268035]
[1733192842667,0.8046,3632.1,3631.7,0.2751]
[1733192842965,0.8046,3632.1,3631.8,0.0268086]
[1733192843170,0.8046,3632.1,3631.7,0.2751]
[1733192843332,0.8046,3632.1,3631.8,0.0268035]
[1733192843663,0.8046,3632.1,3631.7,0.2751]
[1733192843881,0.8046,3632.1,3631.9,0.02678853]
[1733192844033,0.8046,3632.1,3631.8,0.0268035]
[1733192844233,0.8046,3632.1,3632.0,0.02677356]
[1733192844435,0.8046,3632.1,3631.9,0.02678853]
[1733192844678,0.8046,3632.1,3632.0,0.02677356]
[1733192845361,0.8046,3632.1,3631.7,0.2751]
[1733192845553,0.8046,3632.1,3631.8,0.0268035]
[1733192845810,0.8046,3632.1,3631.7,0.2751]
[1733192845978,0.8046,3632.1,3631.9,0.02678853]
[1733192846175,0.8046,3632.1,3631.7,0.2751]
[1733192846426,0.8046,3632.1,3631.8,0.0268035]
[1733192846798,0.8046,3632.1,3631.7,0.2751]
[1733192847125,0.8046,3632.1,3631.8,0.0268035]
[1733192847289,0.8046,3632.1,3631.7,0.2751]
[1733192847488,0.8046,3632.1,3631.6,0.22990054]
[1733192847489,0.028,3632.1,3631.9,0.2751]
[1733192847798,0.1,3632.8,3632.0,0.45241212]
[1733192848587,0.1,3632.8,3632.5,0.2751]
[1733192848923,0.1,3632.8,3632.6,0.02675002]
[1733192849221,0.1,3632.8,3632.5,0.2751]
[1733192849638,0.128,3632.8,3632.6,0.02675002]
[1733192850128,0.128,3632.8,3632.1,0.2751]
[1733192850316,0.128,3632.8,3632.2,0.02680988]
[1733192851340,0.128,3632.8,3632.3,0.02679491]
[1733192851709,0.128,3632.8,3631.6,0.2751]
[1733192851903,0.128,3632.8,3631.7,0.02688472]
[1733192852218,0.128,3632.8,3632.2,0.2751]
[1733192852610,0.128,3632.8,3632.3,0.02679491]
[1733192853007,0.16241076,3632.8,3631.7,0.2751]
[1733192853211,0.128,3632.8,3631.7,0.2751]
[1733192853533,0.128,3632.8,3631.8,0.02596506]
[1733192854233,0.128,3632.8,3631.8,0.30106506]
[1733192854944,0.128,3632.8,3632.1,0.2751]
[1733192855129,0.128,3632.8,3632.2,0.02585421]
[1733192855443,0.028,3632.8,3632.2,0.02585421]
[1733192855743,0.128,3632.8,3632.2,0.02585421]
[1733192856412,0.128,3632.8,3632.3,0.2751]
[1733192856605,0.128,3632.8,3632.2,0.02585421]
[1733192856933,0.128,3632.8,3632.3,0.03120802]
[1733192857135,0.328,3632.8,3632.3,0.03120802]
[1733192857322,0.7637,3632.7,3632.0,0.55668171]
[1733192857524,0.7637,3632.7,3632.1,0.30634543]
[1733192858133,0.7917,3632.7,3632.1,0.30634543]
[1733192858843,0.028,3632.7,3632.1,0.30634543]
[1733192859514,0.028,3632.7,3632.1,0.31648924]
[1733192861100,0.8585,3633.3,3632.1,0.54755832]
[1733192862629,0.8865,3633.3,3632.1,0.54755832]
[1733192867736,0.028,3633.3,3633.0,0.2751]
[1733192870356,0.028,3633.3,3633.0,0.51250823]
[1733192870918,0.7872,3633.2,3631.6,0.2751]
[1733192871118,2.0156713,3633.2,3632.8,0.2751]
[1733192871317,0.8152,3633.2,3632.8,0.2751]
[1733192871862,0.8199,3633.0,3632.8,0.2751]
[1733192872366,0.8199,3633.0,3632.4,0.2751]
[1733192873172,0.8479,3633.0,3632.4,0.2751]
[1733192875845,0.2,3632.8,3632.5,0.2751]
[1733192876044,0.8172,3632.7,3632.5,0.2751]
[1733192876258,0.23441244,3632.6,3632.5,0.2751]
[1733192876465,1.0172,3632.6,3632.5,0.2751]
[1733192876870,1.0172,3632.6,3632.0,0.2751]
[1733192877239,1.0452,3632.6,3632.0,0.2751]
[1733192878167,0.8452,3632.6,3632.0,0.2751]
[1733192878349,1.0452,3632.6,3632.0,0.2751]
[1733192878549,0.2,3632.4,3631.3,0.2751]
[1733192878849,0.228,3632.4,3631.5,0.2751]
[1733192879078,0.228,3632.4,3631.9,0.2751]
[1733192879843,0.8227,3632.3,3631.9,0.2751]
[1733192880187,0.8227,3632.3,3631.5,0.2751]
[1733192881184,0.8227,3632.3,3631.8,0.2751]
[1733192882061,0.8227,3632.3,3631.9,0.2751]
[1733192883087,0.817,3632.1,3632.0,0.2751]
[1733192883479,0.845,3632.1,3632.0,0.2751]
[1733192885292,0.845,3632.1,3631.5,0.2751]
[1733192888089,0.2,3631.6,3631.5,0.2751]
[1733192888289,0.3,3631.6,3631.5,0.2751]
[1733192888455,0.59956882,3631.6,3631.5,0.2751]
[1733192888653,1.38776882,3631.6,3631.5,0.2751]
[1733192888973,1.41576882,3631.6,3631.5,0.2751]
[1733192889148,1.40826882,3631.6,3631.5,0.2751]
[1733192890251,1.40826882,3631.6,3630.4,0.54186282]
[1733192890252,0.7723,3631.5,3630.5,0.2751]
[1733192893992,0.2,3631.3,3630.5,0.2751]
[1733192894290,0.8076,3630.9,3630.5,0.2751]
[1733192894659,0.8076,3630.9,3630.5,0.50507924]
[1733192895074,0.8356,3630.9,3630.5,0.50507924]
[1733192896896,0.1,3631.6,3630.5,0.50507924]
[1733192897070,0.2,3632.1,3630.9,0.2751]
[1733192897259,0.2,3632.5,3630.9,0.2751]
[1733192897462,0.3,3632.5,3630.9,0.2751]
[1733192897776,0.3,3632.5,3631.4,0.2751]
[1733192898501,0.1,3632.3,3631.5,0.05153288]
[1733192898703,0.2,3632.5,3631.7,0.2751]
[1733192898704,0.3,3632.5,3631.7,0.2751]
[1733192899081,0.028,3632.3,3631.7,0.2751]
[1733192899998,0.2,3632.1,3631.0,0.2751]
[1733192900167,0.228,3632.1,3631.4,0.2751]
[1733192900364,0.028,3632.1,3631.4,0.2751]
[1733192900568,0.228,3632.1,3631.5,0.05153288]
[1733192901458,0.028,3632.1,3631.5,0.05153288]
[1733192902401,0.3,3632.5,3631.5,0.05153288]
[1733192902402,2.73e-06,3633.1,3632.3,0.2751]
[1733192902705,0.1,3633.7,3633.3,2.75231]
[1733192902887,2.66219651,3633.4,3633.3,1.91901]
[1733192903065,2.66219651,3633.4,3633.0,2.75248]
[1733192903265,2.66219651,3633.4,3633.3,2.75231]
[1733192903699,2.66219651,3633.4,3633.3,1.91901]
[1733192903867,2.66219651,3633.4,3633.0,2.75248]
[1733192903868,2.9978391,3633.4,3633.0,2.75248]
[1733192904061,0.03441174,3633.3,3633.2,2.75239]
[1733192904412,3.61024989,3633.4,3633.3,2.75231]
[1733192904884,0.55,3633.3,3633.0,2.75248]
[1733192905087,0.58441318,3633.3,3633.0,2.75248]
[1733192905290,1.80980713,3633.2,3633.1,2.75247]
[1733192906189,1.87221983,3633.2,3633.1,2.75247]
[1733192906390,1.83780713,3633.2,3633.1,2.75247]
[1733192907896,1.28780713,3633.2,3633.1,2.75247]
[1733192909343,2.66219651,3633.7,3633.6,2.75209]
[1733192910512,3.21219651,3633.7,3633.6,2.75209]
[1733192911409,3.24019651,3633.7,3633.6,2.75209]
[1733192912217,3.80083654,3633.7,3633.6,2.75209]
[1733192912402,4.63403654,3633.7,3633.6,2.75209]
[1733192912599,5.11088099,3633.7,3633.6,2.75209]
[1733192917168,5.14528888,3633.7,3633.6,2.75209]
[1733192917768,5.11088099,3633.7,3633.6,2.75209]
[1733192917972,1.88804445,3633.7,3633.6,2.75209]
[1733192918273,1.4112,3633.7,3633.6,2.75209]
[1733192919434,0.8612,3633.7,3633.6,2.75209]
[1733192919663,1.4112,3633.7,3633.6,2.75209]
[1733192924107,0.55,3634.6,3633.9,2.75186]
[1733192924412,0.55,3634.2,3634.1,2.75171]
[1733192924616,0.87466024,3634.2,3634.1,2.75171]
[1733192926396,0.90266024,3634.2,3634.1,2.75171]
[1733192927111,1.66576024,3634.2,3634.1,2.75171]
[1733192929106,1e-05,3634.2,3634.1,2.75171]
[1733192931810,1e-05,3634.2,3634.1,3.57411]
[1733192932018,1e-05,3634.2,3634.1,3.84921]
[1733192933727,1.72903331,3636.9,3635.5,0.7504]
[1733192933935,0.8133,3637.9,3637.0,2.74951]
[1733192934083,0.8133,3637.9,3637.8,2.74891]
[1733192934289,0.8133,3637.9,3637.4,2.74915]
[1733192934826,0.8133,3637.9,3637.8,2.74891]
[1733192935032,0.01181279,3639.8,3637.4,2.74918]
[1733192935341,2.66219651,3639.3,3637.4,3.55858]
[1733192935640,0.26621965,3639.2,3638.6,2.74829]
[1733192935921,0.56140485,3638.7,3638.6,2.74829]
[1733192936497,0.55,3638.6,3638.3,2.74851]
[1733192938089,0.55,3638.4,3638.3,2.74851]
[1733192940414,0.55,3638.4,3638.3,5.74851]
[1733192940653,0.71365048,3638.4,3638.3,5.74851]
[1733192940815,0.74165048,3638.4,3638.3,5.74851]
[1733192943453,1.23875048,3638.4,3638.3,2.74851]
[1733192945916,1.23875048,3638.4,3637.6,2.74906]
[1733192946138,0.55,3638.2,3637.8,2.74886]
[1733192946356,0.55,3638.2,3638.1,2.74868]
[1733192946515,0.578,3638.2,3638.1,2.74868]
[1733192949246,0.028,3638.2,3638.1,2.74868]
[1733192950182,0.028,3638.2,3638.1,5.74868]
[1733192959642,0.55,3638.9,3638.8,2.74815]
[1733192961766,0.578,3638.9,3638.8,2.74815]
[1733192963156,1.00750297,3638.9,3638.2,2.74855]
[1733192963351,1.04099421,3638.9,3638.8,2.74815]
[1733192963557,0.578,3638.9,3638.8,2.74815]
[1733192965096,0.028,3638.9,3638.8,2.74815]
[1733192972709,0.5251,3638.9,3638.8,2.74815]
[1733192972869,1.0751,3638.9,3638.8,2.74815]
[1733192974109,0.55,3638.8,3638.0,2.74876]
[1733192974271,1.0471,3638.6,3638.2,2.74854]
[1733192974766,1.0751,3638.6,3638.2,2.74854]
[1733192975178,1.0751,3638.6,3638.3,2.74847]
[1733192975500,3.21219651,3638.4,3638.3,2.74847]
[1733192976404,3.24019651,3638.4,3638.3,2.74847]
[1733192980336,3.58918603,3638.4,3638.3,2.74847]
[1733192981741,4.13624028,3638.4,3638.3,2.74847]
[1733192983900,0.55,3638.3,3637.5,3.56419]
[1733192984099,0.55,3638.3,3637.5,2.74912]
[1733192984100,2.66219651,3637.6,3637.5,2.74912]
[1733192984341,3.21219651,3637.6,3637.5,2.74912]
[1733192985044,3.24019651,3637.6,3637.5,2.74912]
[1733192986551,3.56421616,3637.6,3637.5,2.74912]
[1733192987547,0.55,3637.4,3637.0,2.74946]
[1733192987708,0.578,3637.4,3637.3,2.74929]
[1733192989040,3.24019651,3637.4,3637.3,2.74929]
[1733192992261,3.24019651,3637.4,3636.5,2.74982]
[1733192992462,3.21219651,3636.6,3636.5,2.74982]
[1733192992958,3.24019651,3636.6,3636.5,2.74982]
[1733192995427,3.78959019,3636.6,3636.5,2.74982]
[1733192995935,3.24019651,3636.6,3636.5,2.74982]
[1733192996259,0.028,3636.6,3636.5,3.56452]
[1733192998146,2.66219651,3637.0,3636.5,3.56452]
[1733192998363,2.66219651,3637.0,3636.9,2.74959]
[1733192999376,3.21219651,3637.0,3636.9,2.74959]
[1733192999731,2.66219651,3637.0,3636.9,2.74959]
[1733193001180,2.69019651,3637.0,3636.9,2.74959]
[1733193001485,3.01314272,3637.0,3636.9,2.74959]
[1733193001638,3.51024272,3637.0,3636.7,2.74972]
[1733193001841,3.51024272,3637.0,3636.9,2.74959]
[1733193002052,0.84804621,3637.0,3636.9,2.74959]
[1733193002272,0.5251,3637.0,3636.9,2.74959]
[1733193002672,2.69019651,3637.0,3636.9,2.74959]
[1733193003061,0.028,3637.0,3636.9,2.74959]
[1733193004163,0.5251,3637.0,3636.4,3.0]
[1733193004354,2.66219651,3636.5,3636.4,3.0]
[1733193005100,2.66219651,3636.5,3636.4,2.74997]
[1733193005569,3.15929651,3636.5,3636.4,2.74997]
[1733193006152,3.18729651,3636.5,3636.4,2.74997]
[1733193006865,1.0471,3636.1,3634.0,0.7812]
[1733193007061,2.66219651,3634.1,3634.0,3.53291]
[1733193007260,2.69019651,3634.1,3634.0,3.53291]
[1733193012906,1.31433651,3634.1,3634.0,3.53291]
[1733193013205,0.4971,3635.8,3635.6,2.75055]
[1733193013354,0.4971,3635.8,3635.6,2.75057]
[1733193013705,0.4971,3635.8,3634.8,5.50236]
[1733193013870,0.4971,3635.8,3634.7,0.7732]
[1733193013871,0.4971,3635.8,3635.7,2.7505]
[1733193014076,1.03779089,3635.8,3635.7,2.7505]
[1733193014583,0.54069089,3635.8,3635.7,2.7505]
[1733193015178,0.56869089,3635.8,3635.7,2.7505]
[1733193015926,0.4971,3636.4,3636.3,2.75004]
[1733193016074,0.4971,3636.7,3636.3,2.75004]
[1733193016282,0.4971,3636.7,3636.6,2.74975]
[1733193017291,0.4971,3637.3,3637.1,2.74944]
[1733193017485,0.31592965,3637.2,3636.1,0.7757]
[1733193017684,2.66219651,3636.2,3636.1,3.52589]
[1733193018116,0.03349124,3637.1,3636.5,2.74989]
[1733193018117,2.66219651,3636.6,3636.5,2.74989]
[1733193018899,2.69019651,3636.6,3636.5,2.74989]
[1733193019282,2.95921616,3636.6,3636.5,2.74989]
[1733193019524,3.45631616,3636.6,3636.5,2.74989]
[1733193020015,3.45631616,3636.6,3636.2,2.75006]
[1733193020183,2.66219651,3636.1,3636.0,2.75021]
[1733193023244,0.57025158,3636.6,3636.5,2.74989]
[1733193023427,0.4971,3638.7,3636.7,2.74974]
[1733193023593,2.66219651,3637.7,3637.6,2.74906]
[1733193025530,2.69019651,3637.7,3637.6,2.74906]
[1733193027446,2.69019651,3637.7,3636.7,0.8298]
[1733193027746,0.27236878,3637.6,3637.5,2.74914]
[1733193028320,2.69019651,3637.7,3637.6,2.74906]
[1733193033822,0.028,3637.7,3637.6,2.74906]
[1733193034252,0.03349124,3638.9,3638.4,2.74846]
[1733193034253,0.4971,3638.6,3638.4,2.74846]
[1733193034561,2.66219651,3639.3,3638.8,2.74815]
[1733193034761,2.66219651,3639.3,3639.2,2.74785]
[1733193035059,3.52516589,3639.3,3639.2,2.74785]
[1733193036519,3.55316589,3639.3,3639.2,2.74785]
[1733193037373,0.89096938,3639.3,3639.2,2.74785]
[1733193037571,0.5716906,3639.3,3639.2,2.74785]
[1733193043769,0.5716906,3639.3,3639.2,2.74785]
[1733193044551,3.23388711,3639.3,3639.2,2.74785]
[1733193044863,3.23388711,3639.3,3638.4,0.8326]
[1733193044864,3.23388711,3639.3,3638.5,2.74838]
[1733193045069,3.26737835,3639.3,3638.6,2.7483]
[1733193045265,3.26737835,3639.3,3638.9,2.74803]
[1733193045456,0.32673783,3639.2,3639.0,2.748]
[1733193045980,0.32673783,3639.2,3639.1,2.74793]
[1733193046145,0.35473783,3639.2,3639.1,2.74793]
[1733193049741,0.028,3639.2,3639.1,2.74793]
[1733193051048,0.028,3639.2,3639.1,3.59283]
[1733193054404,0.03349124,3640.2,3639.9,2.74732]
[1733193054617,2.66219651,3640.5,3639.9,2.74732]
[1733193054618,0.54303247,3640.0,3639.9,2.74732]
[1733193054908,0.44391781,3641.2,3639.8,0.7989]
[1733193054909,2.66219651,3641.0,3639.8,0.7989]
[1733193055113,0.67119437,3640.9,3640.7,2.7467]
[1733193055275,0.41472267,3640.9,3640.1,2.74717]
[1733193055477,0.41472267,3640.9,3640.5,2.74686]
[1733193055676,0.41472267,3640.9,3640.6,2.74678]
[1733193055897,0.543741,3640.8,3640.6,2.74678]
[1733193056140,0.36206602,3640.7,3640.6,2.74678]
[1733193057076,0.36206602,3640.7,3640.6,3.02188]
[1733193057289,0.36206602,3640.7,3640.6,2.74678]
[1733193057509,0.39006602,3640.7,3640.6,2.74678]
[1733193058869,0.39006602,3640.7,3640.1,2.74712]
[1733193059171,0.03349124,3640.6,3639.8,0.7989]
[1733193059405,1.2562,3640.5,3640.0,2.74722]
[1733193059617,0.55,3640.3,3639.4,0.1]
[1733193059911,0.55,3640.3,3640.2,2.7471]
[1733193060113,0.578,3640.3,3640.2,2.7471]
[1733193060476,0.578,3640.3,3639.3,0.8432]
[1733193060676,2.69568775,3640.2,3639.3,1.0431996]
[1733193060913,0.37078831,3640.1,3639.3,0.8432]
[1733193061127,0.03349124,3640.0,3639.3,0.8432]
[1733193061320,0.03349124,3640.0,3639.5,2.74761]
[1733193061520,0.03349124,3640.0,3639.3,0.8432]
[1733193061672,0.028,3640.0,3639.8,2.74739]
[1733193061879,0.028,3640.0,3639.9,3.52792]
[1733193062819,0.028,3640.0,3639.9,3.7279196]
[1733193068942,0.028,3640.0,3639.9,3.52792]
[1733193069102,0.028,3640.0,3639.9,3.62792]
[1733193069543,0.028,3640.0,3639.9,3.52792]
[1733193069700,0.028,3640.0,3639.9,3.62792]
[1733193070365,3.21219651,3640.9,3640.8,2.74664]
[1733193070524,3.60738529,3640.9,3640.8,2.74664]
[1733193071723,0.55,3640.9,3640.8,2.74664]
[1733193071926,0.55,3640.9,3640.3,0.1999996]
[1733193071927,2.81764661,3641.3,3640.6,0.8644]
[1733193072151,0.028,3640.9,3640.8,2.74664]
[1733193072326,2.84564661,3641.3,3640.8,2.74664]
[1733193072650,2.81764661,3641.3,3641.2,2.74634]
[1733193072954,3.17003127,3641.3,3641.2,2.74634]
[1733193073310,3.72003127,3641.3,3641.2,2.74634]
[1733193073956,3.72003127,3641.3,3640.6,3.61112]
[1733193074249,2.66219651,3640.9,3640.7,2.74667]
[1733193074426,0.81621965,3640.8,3640.7,2.74667]
[1733193074616,1.47271965,3640.8,3640.7,2.74667]
[1733193075823,1.47271965,3640.8,3640.1,0.787]
[1733193076168,1.47271965,3640.8,3640.1,3.53412]
[1733193076648,1.47271965,3640.8,3640.6,2.74673]
[1733193076818,0.96964074,3640.7,3640.6,2.74673]
[1733193077482,0.99764074,3640.7,3640.6,2.74673]
[1733193078630,0.99764074,3640.7,3640.1,0.787]
[1733193078872,0.99764074,3640.7,3639.3,0.2747]
[1733193078873,2.66219651,3640.5,3640.2,2.74707]
[1733193079076,0.55,3640.4,3639.8,0.8065]
[1733193079242,0.55,3640.4,3640.1,2.74714]
[1733193079450,0.55,3640.4,3640.3,2.74702]
[1733193079654,0.92827196,3640.4,3640.3,2.74702]
[1733193079877,0.95627196,3640.4,3639.5,1.1064996]
[1733193080032,0.95627196,3640.4,3640.2,2.74709]
[1733193080450,0.95627196,3640.4,3640.0,2.74717]
[1733193081289,0.95627196,3640.4,3638.9,0.2747]
[1733193081290,0.55,3640.0,3639.2,0.8235]
[1733193081580,0.578,3640.0,3639.9,2.74732]
[1733193082763,0.028,3640.0,3639.9,3.56762]
[1733193083135,0.028,3640.0,3639.9,3.7676196]
[1733193083342,0.03349124,3641.5,3640.5,0.1]
[1733193083640,0.1554501,3641.3,3640.6,1.0188996]
[1733193084481,0.1554501,3641.3,3641.2,2.74634]
[1733193084642,0.7054501,3641.3,3641.2,2.74634]
[1733193085047,0.7334501,3641.3,3641.2,2.74634]
[1733193085284,1.07301476,3641.3,3641.2,2.74634]
[1733193085486,1.61610542,3641.3,3641.2,2.74634]
[1733193089172,1.61610542,3641.3,3640.7,2.7467]
[1733193089368,3.21219651,3641.2,3641.1,2.74642]
[1733193089579,0.55,3641.0,3640.3,1.0950996]
[1733193089881,0.55,3641.0,3640.9,2.74657]
[1733193090405,0.578,3641.0,3640.6,2.74672]
[1733193090704,0.55,3640.7,3640.6,2.74672]
[1733193092080,0.55,3640.7,3640.1,0.1999996]
[1733193092308,0.55,3640.7,3640.4,2.74688]
[1733193092478,0.55,3640.7,3639.9,2.84728]
[1733193092479,0.55,3640.4,3639.9,2.74732]
[1733193092877,0.55,3640.4,3640.3,2.74702]